bitfinex-derivatives/quotes_BTCF0:USTF0_20250729
["timestamp","ask_amount","ask_price","bid_price","bid_amount"]
[1753768882458,0.4501516,118860.0,118850.0,1.60491562]
[1753768882763,0.5701516,118860.0,118850.0,1.52942741]
[1753768882954,0.5701516,118860.0,118850.0,1.2489138]
[1753768883854,0.5701516,118860.0,118850.0,1.2509138]
[1753768885560,0.5701516,118860.0,118850.0,1.2519138]
[1753768885858,0.5701516,118860.0,118850.0,1.2509138]
[1753768887359,0.5238416,118860.0,118850.0,1.53142741]
[1753768890264,0.5701516,118860.0,118850.0,1.53142741]
[1753768895865,0.5238416,118860.0,118850.0,1.53142741]
[1753768896164,0.4041016,118860.0,118850.0,1.53142741]
[1753768896461,0.3664016,118860.0,118850.0,1.53142741]
[1753768897566,0.4035016,118860.0,118850.0,1.53142741]
[1753768900767,0.2882716,118860.0,118850.0,1.53142741]
[1753768901263,0.2882716,118860.0,118850.0,0.85842741]
[1753768901465,0.2882716,118860.0,118850.0,1.53094741]
[1753768906861,0.3552216,118860.0,118850.0,1.53094741]
[1753768907067,0.84810521,118860.0,118850.0,1.2079628]
[1753768907468,0.84810521,118860.0,118850.0,1.1658533]
[1753768907667,0.84810521,118860.0,118850.0,0.8423533]
[1753768907970,1.34810521,118860.0,118850.0,1.0641633]
[1753768908169,1.34810521,118860.0,118850.0,1.1337233]
[1753768908468,1.34810521,118860.0,118850.0,0.9379533]
[1753768908669,1.35780032,118860.0,118850.0,0.99749]
[1753768908870,1.35780032,118860.0,118850.0,1.1657758]
[1753768909972,1.34810521,118860.0,118850.0,1.1657758]
[1753768910167,1.0675916,118860.0,118850.0,1.1657758]
[1753768910570,1.13510428,118860.0,118850.0,1.1657758]
[1753768911076,1.13510428,118860.0,118850.0,1.44628941]
[1753768912273,1.14487317,118860.0,118850.0,1.44628941]
[1753768912472,1.13510428,118860.0,118850.0,1.44628941]
[1753768913274,1.13510428,118860.0,118850.0,1.52177762]
[1753768913871,0.68751268,118860.0,118850.0,1.52177762]
[1753768914174,0.85578428,118860.0,118850.0,1.44628941]
[1753768914374,0.85578428,118860.0,118850.0,1.52177762]
[1753768914775,0.85578428,118860.0,118850.0,1.44628941]
[1753768915576,0.85578428,118860.0,118850.0,1.52177762]
[1753768917877,0.92273428,118860.0,118850.0,1.52177762]
[1753768919173,0.92273428,118860.0,118850.0,1.44628941]
[1753768919978,1.03123428,118860.0,118850.0,1.44628941]
[1753768920778,0.68751268,118860.0,118850.0,1.44628941]
[1753768920979,0.68751268,118860.0,118850.0,1.52177762]
[1753768921188,0.62,118860.0,118850.0,1.44628941]
[1753768921483,0.361451,118880.0,118870.0,0.4916675]
[1753768921784,0.648331,118880.0,118870.0,1.44446111]
[1753768922681,1.148331,118880.0,118870.0,1.44446111]
[1753768922977,1.150331,118880.0,118870.0,1.44446111]
[1753768923383,1.1082679,118880.0,118870.0,1.44446111]
[1753768924179,1.1092679,118880.0,118870.0,1.44446111]
[1753768925187,1.0620779,118880.0,118870.0,1.44446111]
[1753768925586,1.1062679,118880.0,118870.0,1.44446111]
[1753768932194,1.03691181,118890.0,118870.0,1.52858441]
[1753768932395,1.21514101,118890.0,118880.0,0.4916534]
[1753768933494,1.21714101,118890.0,118880.0,0.4916534]
[1753768933695,1.71714101,118890.0,118880.0,0.4916534]
[1753768934997,1.71814101,118890.0,118880.0,0.4916534]
[1753768937893,0.13,118890.0,118880.0,0.5273436]
[1753768938197,0.3402888,118890.0,118880.0,0.84991801]
[1753768938390,0.3402888,118890.0,118880.0,0.89607801]
[1753768939897,0.8402888,118890.0,118880.0,0.89607801]
[1753768943997,0.8402888,118890.0,118880.0,0.85401721]
[1753768954305,0.8402888,118890.0,118880.0,0.81195641]
[1753768954804,1.05061661,118890.0,118880.0,0.4893834]
[1753768955006,1.05061661,118890.0,118880.0,0.69971121]
[1753768955304,1.05061661,118890.0,118880.0,1.20350781]
[1753768955506,1.05061661,118890.0,118880.0,1.37175121]
[1753768959007,1.05061661,118890.0,118880.0,1.58207902]
[1753768959306,1.05061661,118890.0,118880.0,1.37175121]
[1753768960001,1.05080661,118890.0,118880.0,1.37175121]
[1753768963907,0.05111661,118890.0,118880.0,1.37175121]
[1753768964104,0.3107888,118890.0,118880.0,1.58207902]
[1753768964310,0.3102888,118890.0,118880.0,1.58207902]
[1753768964512,0.2682292,118890.0,118880.0,1.58207902]
[1753768965612,0.7682292,118890.0,118880.0,1.58207902]
[1753768966813,0.7682292,118890.0,118880.0,1.4417751]
[1753768968016,0.7682292,118890.0,118880.0,1.7221268]
[1753768968815,0.7682292,118890.0,118880.0,1.79764017]
[1753768969212,0.7682292,118890.0,118880.0,1.74111466]
[1753768971419,0.6,118890.0,118880.0,1.74111466]
[1753768972416,0.1,118890.0,118880.0,1.74111466]
[1753768972808,0.2682293,118890.0,118880.0,1.74111466]
[1753768973110,0.2682293,118890.0,118880.0,1.81662803]
[1753768974310,0.1,118890.0,118880.0,1.81662803]
[1753768974916,0.2682293,118890.0,118880.0,1.46076296]
[1753768975419,0.2682293,118890.0,118880.0,1.18041126]
[1753768975617,0.2682293,118890.0,118880.0,1.46076296]
[1753768976419,0.2784693,118890.0,118880.0,1.46076296]
[1753768976919,0.2948493,118890.0,118880.0,1.46076296]
[1753768978823,0.2948493,118890.0,118880.0,0.78872296]
[1753768979320,0.2948493,118890.0,118880.0,1.18173126]
[1753768980127,0.7948493,118890.0,118880.0,1.18173126]
[1753768980326,0.7948493,118890.0,118880.0,1.46208296]
[1753768983922,0.62662,118890.0,118880.0,1.46208296]
[1753768984325,0.62662,118890.0,118880.0,0.78872296]
[1753768985231,0.7948494,118890.0,118880.0,0.78872296]
[1753768985626,0.7948494,118890.0,118880.0,1.46204296]
[1753768989631,0.7948494,118890.0,118880.0,0.78872306]
[1753768989820,0.7948494,118890.0,118880.0,1.46172306]
[1753768990830,0.7948494,118890.0,118880.0,1.60198784]
[1753769007349,0.7948494,118890.0,118880.0,1.67750121]
[1753769008947,0.7948494,118890.0,118880.0,1.60198784]
[1753769009246,0.7948494,118890.0,118880.0,1.67750121]
[1753769012750,0.7784694,118890.0,118880.0,1.67750121]
[1753769014044,0.7784694,118890.0,118880.0,1.60198784]
[1753769015749,0.7784694,118890.0,118880.0,1.67750121]
[1753769016753,0.61024,118890.0,118880.0,1.67750121]
[1753769017049,0.6,118890.0,118880.0,1.67750121]
[1753769017246,0.43717576,118890.0,118880.0,1.88780945]
[1753769017447,0.49217576,118890.0,118880.0,1.81229608]
[1753769017750,0.49217576,118890.0,118880.0,1.88780945]
[1753769017944,0.32942576,118890.0,118880.0,1.81229608]
[1753769018152,0.32942576,118890.0,118880.0,1.88780945]
[1753769018450,0.13,118890.0,118880.0,1.88780945]
[1753769023354,0.13,118890.0,118880.0,1.81229608]
[1753769024456,0.13,118890.0,118880.0,1.88766709]
[1753769024657,0.13,118890.0,118880.0,1.81229608]
[1753769025452,0.13,118890.0,118880.0,1.88766006]
[1753769025858,0.13,118890.0,118880.0,1.81229608]
[1753769026462,0.13,118890.0,118880.0,1.88765491]
[1753769028959,0.13,118890.0,118880.0,1.81229608]
[1753769032462,0.13,118890.0,118880.0,1.13929608]
[1753769032763,0.13,118890.0,118880.0,1.81201608]
[1753769034865,0.13,118890.0,118880.0,1.88737491]
[1753769036663,0.13,118890.0,118880.0,1.81201608]
[1753769037263,0.13,118890.0,118880.0,1.13929608]
[1753769037470,0.6736793,118890.0,118880.0,1.60126784]
[1753769037669,0.88398754,118890.0,118880.0,0.79404267]
[1753769037968,0.88398754,118890.0,118880.0,1.27294267]
[1753769038969,1.1736793,118890.0,118880.0,1.60259091]
[1753769039163,1.1736793,118890.0,118880.0,1.70559091]
[1753769039667,1.38398754,118890.0,118880.0,1.63022784]
[1753769040268,1.1736793,118890.0,118880.0,1.63022784]
[1753769043665,1.00545,118890.0,118880.0,1.63022784]
[1753769044371,0.63,118890.0,118880.0,1.84053608]
[1753769045071,0.13,118890.0,118880.0,1.84053608]
[1753769045465,0.13,118890.0,118880.0,1.91589915]
[1753769046569,0.13,118890.0,118880.0,1.84053608]
[1753769046773,0.13,118890.0,118880.0,1.77019394]
[1753769053478,0.13,118890.0,118880.0,1.87583336]
[1753769055581,0.13,118890.0,118880.0,1.95123269]
[1753769055782,0.13,118890.0,118880.0,1.84559327]
[1753769055982,0.13,118890.0,118880.0,1.77019394]
[1753769058982,0.13,118890.0,118880.0,1.87583336]
[1753769066785,0.13,118890.0,118880.0,1.94589449]
[1753769071993,0.13,118890.0,118880.0,1.84025507]
[1753769073798,0.13,118890.0,118880.0,1.94589449]
[1753769080301,0.13,118890.0,118880.0,1.84025507]
[1753769084906,0.13,118890.0,118880.0,1.94597434]
[1753769085102,0.4466593,118890.0,118880.0,1.73595977]
[1753769085311,0.6599993,118890.0,118880.0,1.73595977]
[1753769086209,0.49177,118890.0,118880.0,1.73595977]
[1753769086600,0.6599994,118890.0,118880.0,1.81147877]
[1753769087005,0.6599994,118890.0,118880.0,1.7057595]
[1753769087712,0.49177,118890.0,118880.0,1.7057595]
[1753769090110,0.49177,118890.0,118880.0,1.70568781]
[1753769090811,0.49177,118890.0,118880.0,1.91590238]
[1753769090812,0.3765,118890.0,118880.0,1.91590238]
[1753769092610,0.22978,118890.0,118880.0,1.91590238]
[1753769093500,0.22978,118890.0,118880.0,1.84038338]
[1753769095009,0.22978,118890.0,118880.0,1.63016881]
[1753769095214,0.3765,118890.0,118880.0,1.63016881]
[1753769095812,0.3765,118890.0,118880.0,1.84038338]
[1753769096609,0.3765,118890.0,118880.0,1.91586464]
[1753769097415,0.22978,118890.0,118880.0,1.91586464]
[1753769098318,0.16287,118890.0,118880.0,1.91586464]
[1753769099116,0.30959,118890.0,118880.0,1.91586464]
[1753769102030,0.37685,118890.0,118880.0,1.91586464]
[1753769102327,0.37685,118890.0,118880.0,1.70565007]
[1753769102919,0.37685,118890.0,118880.0,1.63016881]
[1753769104325,0.49212,118890.0,118880.0,1.63016881]
[1753769109035,0.6603493,118890.0,118880.0,1.63016881]
[1753769109230,0.5937293,118890.0,118880.0,1.63004881]
[1753769109431,0.6603493,118890.0,118880.0,1.70553007]
[1753769109830,0.6603493,118890.0,118880.0,1.73576808]
[1753769111438,0.49212,118890.0,118880.0,1.73576808]
[1753769114139,0.4255,118890.0,118880.0,1.73576808]
[1753769114442,0.37685,118890.0,118880.0,1.94598265]
[1753769115136,0.23013,118890.0,118880.0,1.94598265]
[1753769115337,0.16287,118890.0,118880.0,1.94598265]
[1753769115933,0.13,118890.0,118880.0,1.94598265]
[1753769116330,0.13,118890.0,118880.0,2.57662636]
[1753769116539,0.04533,118910.0,118900.0,0.1295638]
[1753769116737,0.15533,118910.0,118900.0,1.76070938]
[1753769116936,0.15533,118910.0,118900.0,1.80276318]
[1753769118339,0.15733,118910.0,118900.0,1.80276318]
[1753769118839,0.15733,118910.0,118900.0,1.45232406]
[1753769119037,0.15733,118910.0,118900.0,1.46168493]
[1753769120337,0.15733,118910.0,118900.0,1.38618346]
[1753769121139,0.15733,118910.0,118900.0,1.49190273]
[1753769124745,0.15733,118910.0,118900.0,1.38618346]
[1753769128443,0.15733,118910.0,118900.0,1.46143373]
[1753769129141,0.112,118910.0,118900.0,1.46143373]
[1753769129737,0.15733,118910.0,118900.0,1.46143373]
[1753769130441,0.112,118910.0,118900.0,1.46143373]
[1753769131144,0.15733,118910.0,118900.0,1.46143373]
[1753769140752,0.15733,118910.0,118900.0,1.81173293]
[1753769143553,0.15733,118910.0,118900.0,1.73648266]
[1753769143753,0.15733,118910.0,118900.0,1.84220193]
[1753769144152,0.15733,118910.0,118900.0,1.73648266]
[1753769145356,0.15733,118910.0,118900.0,1.84220193]
[1753769151060,0.15733,118910.0,118900.0,1.16952193]
[1753769151356,0.15733,118910.0,118900.0,1.84216193]
[1753769152464,0.41588,118910.0,118900.0,1.84216193]
[1753769157365,0.41588,118910.0,118900.0,1.73644266]
[1753769157964,0.23861,118910.0,118900.0,1.73644266]
[1753769158865,0.23861,118910.0,118900.0,1.84216649]
[1753769160768,0.15733,118910.0,118900.0,1.84216649]
[1753769161165,0.112,118910.0,118900.0,1.84216649]
[1753769161370,0.112,118910.0,118900.0,1.73644266]
[1753769161671,0.0491,118910.0,118900.0,1.73644266]
[1753769162562,0.0491,118910.0,118900.0,1.84216649]
[1753769168867,0.002,118910.0,118900.0,1.73644266]
[1753769170274,0.08286,118920.0,118910.0,0.180371]
[1753769170476,0.13286,118920.0,118910.0,0.7063513]
[1753769172081,0.13286,118920.0,118910.0,0.60070686]
[1753769172281,0.13486,118920.0,118910.0,0.60070686]
[1753769174879,0.13486,118920.0,118910.0,0.81087479]
[1753769175175,0.13542,118920.0,118910.0,0.81087479]
[1753769175685,0.13542,118920.0,118910.0,0.91651923]
[1753769176081,0.13542,118920.0,118910.0,0.81087479]
[1753769176283,0.13542,118920.0,118910.0,0.6761144]
[1753769176688,0.13542,118920.0,118910.0,0.60070686]
[1753769177679,0.13542,118920.0,118910.0,0.81087479]
[1753769177882,4e-05,118930.0,118920.0,0.173827]
[1753769178079,0.0477,118930.0,118920.0,1.58016252]
[1753769178289,0.20057,118940.0,118930.0,0.1773428]
[1753769178485,0.48846,118940.0,118930.0,0.67305803]
[1753769178983,0.48846,118940.0,118930.0,0.7399909]
[1753769179380,0.48846,118940.0,118930.0,0.31965504]
[1753769179592,0.48846,118940.0,118930.0,0.7399909]
[1753769180391,0.48846,118940.0,118930.0,0.31965504]
[1753769180589,0.48846,118940.0,118930.0,0.7399909]
[1753769180891,0.48846,118940.0,118930.0,0.31965504]
[1753769181191,0.48846,118940.0,118930.0,0.7399909]
[1753769181391,0.48846,118940.0,118930.0,0.31965504]
[1753769181586,0.48846,118940.0,118930.0,0.7399909]
[1753769182288,0.31057,118940.0,118930.0,0.73988892]
[1753769182482,0.48846,118940.0,118930.0,0.73988892]
[1753769183592,0.37846,118940.0,118930.0,0.73988892]
[1753769186396,0.37846,118940.0,118930.0,0.66461153]
[1753769193501,0.37846,118940.0,118930.0,0.73988892]
[1753769200304,0.37846,118940.0,118930.0,0.31955306]
[1753769200501,0.37846,118940.0,118930.0,0.73988892]
[1753769201805,0.37846,118940.0,118930.0,0.95005685]
[1753769202100,0.04766,118940.0,118930.0,0.9804239]
[1753769202707,0.12652,118940.0,118930.0,0.9804239]
[1753769202907,0.37846,118940.0,118930.0,0.9804239]
[1753769203297,0.37846,118940.0,118930.0,0.87477946]
[1753769204710,0.37846,118940.0,118930.0,0.9804239]
[1753769206911,0.37846,118940.0,118930.0,0.77025597]
[1753769207412,0.37846,118940.0,118930.0,0.9804239]
[1753769208011,0.37846,118940.0,118930.0,0.77025597]
[1753769209812,0.37846,118940.0,118930.0,0.66461153]
[1753769210001,0.37846,118940.0,118930.0,1.34021153]
[1753769211010,0.37846,118940.0,118930.0,1.44580772]
[1753769216322,0.37846,118940.0,118930.0,1.44556772]
[1753769220439,0.37846,118940.0,118930.0,1.33997153]
[1753769221736,0.37846,118940.0,118930.0,1.44554806]
[1753769222837,0.37846,118940.0,118930.0,1.0252122]
[1753769223040,0.37846,118940.0,118930.0,1.44586806]
[1753769223433,0.70674793,118940.0,118930.0,0.48391726]
[1753769223633,0.87490663,118940.0,118930.0,1.16003726]
[1753769223931,0.49658,118940.0,118930.0,1.05446073]
[1753769224734,0.49658,118940.0,118930.0,1.06710073]
[1753769225342,0.48658,118940.0,118930.0,1.27726866]
[1753769225640,0.48658,118940.0,118930.0,1.27730866]
[1753769226039,0.48658,118940.0,118930.0,1.06714073]
[1753769226242,0.48658,118940.0,118930.0,1.27730866]
[1753769226441,0.48658,118940.0,118930.0,1.35274018]
[1753769226941,0.37658,118940.0,118930.0,1.35274018]
[1753769228741,0.37658,118940.0,118930.0,1.27730866]
[1753769229744,0.37658,118940.0,118930.0,1.35269838]
[1753769229940,0.37658,118940.0,118930.0,1.27730866]
[1753769230341,0.38363,118940.0,118930.0,1.27730866]
[1753769230547,0.38363,118940.0,118930.0,1.38288519]
[1753769233348,0.38363,118940.0,118930.0,1.27730866]
[1753769233542,0.38363,118940.0,118930.0,1.35266942]
[1753769235547,0.50363,118940.0,118930.0,1.35266942]
[1753769235748,0.38363,118940.0,118930.0,1.35266942]
[1753769235951,0.51363,118940.0,118930.0,1.35266942]
[1753769236249,0.38363,118940.0,118930.0,1.35266942]
[1753769238045,0.38363,118940.0,118930.0,1.27730866]
[1753769240952,0.38363,118940.0,118930.0,1.38288519]
[1753769246562,0.38363,118940.0,118930.0,1.42868519]
[1753769251757,0.48363,118940.0,118930.0,1.42868519]
[1753769251958,0.38363,118940.0,118930.0,1.42868519]
[1753769252158,0.49363,118940.0,118930.0,1.42868519]
[1753769252458,0.38363,118940.0,118930.0,1.42868519]
[1753769252865,0.48363,118940.0,118930.0,1.42868519]
[1753769253363,0.38363,118940.0,118930.0,1.42868519]
[1753769261670,0.38363,118940.0,118930.0,1.32310866]
[1753769262173,0.38363,118940.0,118930.0,1.33684866]
[1753769265979,0.49363,118940.0,118930.0,0.66068866]
[1753769266177,0.38363,118940.0,118930.0,1.33548866]
[1753769266377,0.50363,118940.0,118930.0,0.66068866]
[1753769266581,0.38363,118940.0,118930.0,1.33532866]
[1753769266783,0.38363,118940.0,118930.0,1.44090519]
[1753769270485,0.38363,118940.0,118930.0,1.33532866]
[1753769272888,0.38363,118940.0,118930.0,1.44090519]
[1753769273578,0.38363,118940.0,118930.0,1.33532866]
[1753769274494,0.38363,118940.0,118930.0,1.44090519]
[1753769275792,0.38363,118940.0,118930.0,1.41075277]
[1753769276904,0.48363,118940.0,118930.0,1.41075277]
[1753769277109,0.6517887,118940.0,118930.0,1.41047277]
[1753769277302,0.6817887,118940.0,118930.0,1.20030484]
[1753769278700,0.6817887,118940.0,118930.0,1.12488073]
[1753769279198,0.6817887,118940.0,118930.0,1.2003131]
[1753769279392,0.6817887,118940.0,118930.0,0.5259531]
[1753769279598,0.89195663,118940.0,118930.0,1.09842073]
[1753769279802,0.89195663,118940.0,118930.0,1.1738531]
[1753769280507,0.89195663,118940.0,118930.0,1.1766231]
[1753769281800,0.89195663,118940.0,118930.0,0.28940517]
[1753769282010,1.10212456,118940.0,118930.0,0.96348517]
[1753769282311,1.27028456,118940.0,118930.0,0.28940517]
[1753769282804,1.77028456,118940.0,118930.0,0.96348517]
[1753769283005,1.77028456,118940.0,118930.0,0.8880528]
[1753769286609,1.60212456,118940.0,118930.0,0.8880528]
[1753769289109,1.60212456,118940.0,118930.0,0.2139728]
[1753769289311,1.60212456,118940.0,118930.0,0.8878928]
[1753769291910,1.60212456,118940.0,118930.0,0.8876528]
[1753769292209,1.39195663,118940.0,118930.0,1.10059073]
[1753769292412,1.1817887,118940.0,118930.0,1.10059073]
[1753769292709,1.39195663,118940.0,118930.0,1.10059073]
[1753769295011,1.60212456,118940.0,118930.0,1.10059073]
[1753769295211,1.1817887,118940.0,118930.0,1.10059073]
[1753769295812,1.39195663,118940.0,118930.0,1.10059073]
[1753769297412,1.39195663,118940.0,118930.0,0.2139728]
[1753769297617,1.60216456,118940.0,118930.0,0.8902528]
[1753769298516,1.60216456,118940.0,118930.0,0.8901728]
[1753769298717,1.60216456,118940.0,118930.0,0.0458]
[1753769299015,0.6735747,118930.0,118920.0,0.07543237]
[1753769299217,1.22391056,118930.0,118920.0,0.91973927]
[1753769299619,1.22391056,118930.0,118920.0,0.24361927]
[1753769299820,1.22391056,118930.0,118920.0,0.91985927]
[1753769300022,1.22391056,118930.0,118920.0,0.8444269]
[1753769300720,1.23287993,118930.0,118920.0,0.8444269]
[1753769300924,1.73287993,118930.0,118920.0,0.8444269]
[1753769301325,1.73287993,118930.0,118920.0,0.1681869]
[1753769301519,1.73287993,118930.0,118920.0,0.8442669]
[1753769302320,1.73287993,118930.0,118920.0,0.67608]
[1753769302522,1.90105593,118930.0,118920.0,0.8442668]
[1753769302823,1.90105593,118930.0,118920.0,0.676]
[1753769303427,0.5474369,118920.0,118910.0,0.32771857]
[1753769303725,1.09777276,118920.0,118910.0,1.00367857]
[1753769304025,1.09777276,118920.0,118910.0,0.9282462]
[1753769305227,1.59777276,118920.0,118910.0,0.9282462]
[1753769305620,1.1774369,118920.0,118910.0,0.9282462]
[1753769305922,1.1774369,118920.0,118910.0,1.13841413]
[1753769306824,1.1774369,118920.0,118910.0,1.20851143]
[1753769309032,1.1774369,118920.0,118910.0,1.20951143]
[1753769309226,1.1774369,118920.0,118910.0,0.9292462]
[1753769316140,1.45770213,118920.0,118910.0,0.8904774]
[1753769319852,1.45770213,118920.0,118910.0,0.848429]
[1753769320953,1.45770213,118920.0,118910.0,0.847561]
[1753769321954,1.45770213,118920.0,118910.0,0.169201]
[1753769322155,1.45770213,118920.0,118910.0,0.67936]
[1753769326657,1.45770213,118920.0,118910.0,0.847561]
[1753769326858,1.59795532,118920.0,118910.0,0.847561]
[1753769333657,1.59795532,118920.0,118910.0,0.67812]
[1753769343068,0.5377709,118910.0,118900.0,0.8449751]
[1753769343271,1.08828932,118910.0,118900.0,0.67676]
[1753769343564,0.87803011,118910.0,118900.0,0.67676]
[1753769344365,0.78697931,118910.0,118900.0,0.67876]
[1753769344565,1.04624261,118910.0,118900.0,0.77643]
[1753769344756,1.04624261,118910.0,118900.0,0.84061]
[1753769344960,1.54624261,118910.0,118900.0,1.056565]
[1753769345161,1.54624261,118910.0,118900.0,1.057565]
[1753769345458,1.54624261,118910.0,118900.0,1.056565]
[1753769347260,1.54724261,118910.0,118900.0,1.055565]
[1753769347664,1.54724261,118910.0,118900.0,1.054565]
[1753769353872,1.54624261,118910.0,118900.0,1.054565]
[1753769354072,1.54724261,118910.0,118900.0,1.054565]
[1753769354871,1.54724261,118910.0,118900.0,1.055565]
[1753769355674,1.54724261,118910.0,118900.0,1.054565]
[1753769359975,1.3369834,118910.0,118900.0,1.054565]
[1753769360177,1.54724261,118910.0,118900.0,1.054565]
[1753769361377,1.50518931,118910.0,118900.0,1.054565]
[1753769365784,1.50518931,118910.0,118900.0,0.481175]
[1753769365986,1.50518931,118910.0,118900.0,1.156215]
[1753769366284,1.71544852,118910.0,118900.0,0.994365]
[1753769367084,1.71544852,118910.0,118900.0,1.092905]
[1753769367483,1.71544852,118910.0,118900.0,1.157085]
[1753769368384,1.71544852,118910.0,118900.0,0.922825]
[1753769368579,1.71544852,118910.0,118900.0,0.843255]
[1753769369489,1.71544852,118910.0,118900.0,0.940015]
[1753769369690,1.71544852,118910.0,118900.0,0.16094]
[1753769369884,1.71544852,118910.0,118900.0,0.83562]
[1753769370489,1.71544852,118910.0,118900.0,1.0038351]
[1753769370990,1.71544852,118910.0,118890.0,0.07543237]
[1753769370991,1.58235013,118910.0,118890.0,0.07543237]
[1753769371191,1.1197734,118910.0,118900.0,0.04921]
[1753769371489,1.33003261,118910.0,118900.0,0.25946921]
[1753769372289,1.33003261,118910.0,118900.0,0.21025921]
[1753769372484,1.33003171,118910.0,118890.0,0.72373]
[1753769372694,0.37847431,118900.0,118890.0,0.25946921]
[1753769372894,0.49847431,118900.0,118890.0,0.25946921]
[1753769373094,0.2882151,118900.0,118890.0,0.25946921]
[1753769373682,0.2882151,118900.0,118890.0,0.45054921]
[1753769374193,0.7882151,118900.0,118890.0,0.26046921]
[1753769374394,1.06833049,118900.0,118890.0,0.04921]
[1753769374693,1.06833049,118900.0,118890.0,0.26046921]
[1753769374895,1.06833049,118900.0,118890.0,0.36906921]
[1753769375496,0.85807128,118900.0,118890.0,0.36906921]
[1753769375796,0.85807128,118900.0,118890.0,0.45054921]
[1753769375992,0.85807128,118900.0,118890.0,0.51907921]
[1753769376795,0.85807128,118900.0,118890.0,0.59061921]
[1753769378699,0.85807128,118900.0,118890.0,0.29229921]
[1753769378885,1.06833049,118900.0,118890.0,0.26046921]
[1753769379091,1.2785897,118900.0,118890.0,0.05021]
[1753769379587,1.2785906,118900.0,118880.0,0.21025921]
[1753769379789,2.67894661,118890.0,118880.0,0.25946921]
[1753769380091,2.79894661,118890.0,118880.0,0.25946921]
[1753769380297,2.79894661,118890.0,118880.0,0.58961921]
[1753769381099,2.79894661,118890.0,118880.0,0.59261921]
[1753769381399,3.29894661,118890.0,118880.0,0.59261921]
[1753769383605,3.34652661,118890.0,118880.0,0.41548921]
[1753769384206,3.34652661,118890.0,118880.0,0.61643921]
[1753769390216,3.34652661,118890.0,118880.0,0.82669842]
[1753769392814,3.34652661,118890.0,118880.0,0.61643921]
[1753769394520,3.1362674,118890.0,118880.0,0.61643921]
[1753769394720,3.34652661,118890.0,118880.0,0.61643921]
[1753769395017,3.34652661,118890.0,118880.0,0.82669842]
[1753769395717,3.1362674,118890.0,118880.0,0.82669842]
[1753769396017,3.34652661,118890.0,118880.0,0.82669842]
[1753769397716,3.34652661,118890.0,118880.0,0.61643921]
[1753769397916,3.34636661,118890.0,118880.0,0.61643921]
[1753769401610,3.1361074,118890.0,118880.0,0.61643921]
[1753769401815,3.34636661,118890.0,118880.0,0.82669842]
[1753769404119,3.34636661,118890.0,118880.0,0.61643921]
[1753769404822,3.34636661,118890.0,118880.0,0.82669842]
[1753769405521,3.1361074,118890.0,118880.0,0.82669842]
[1753769405821,3.34636661,118890.0,118880.0,0.82669842]
[1753769406121,3.34636661,118890.0,118880.0,0.61643921]
[1753769408226,3.36602461,118890.0,118880.0,0.61643921]
[1753769411524,3.36606461,118890.0,118880.0,0.61643921]
[1753769411727,3.1558054,118890.0,118880.0,0.61643921]
[1753769412028,3.36606461,118890.0,118880.0,0.61643921]
[1753769420329,3.36606461,118890.0,118880.0,0.40618]
[1753769420532,3.36606461,118890.0,118880.0,0.26246921]
[1753769421234,0.2800235,118880.0,118870.0,0.29399921]
[1753769421428,1.51423992,118880.0,118870.0,0.29399921]
[1753769421635,1.30398071,118880.0,118870.0,0.29399921]
[1753769422433,1.80398071,118880.0,118870.0,0.29399921]
[1753769422639,3.30398071,118880.0,118870.0,0.29399921]
[1753769423939,3.30398071,118880.0,118870.0,0.29599921]
[1753769424633,3.30398071,118880.0,118870.0,0.08574]
[1753769425435,3.51423992,118880.0,118870.0,0.08574]
[1753769425735,3.30398071,118880.0,118870.0,0.08574]
[1753769426336,3.30398071,118880.0,118870.0,0.29599921]
[1753769426539,3.30398071,118880.0,118870.0,0.08574]
[1753769427632,1.80398071,118880.0,118870.0,0.08674]
[1753769431736,0.2800375,118870.0,118860.0,0.61320921]
[1753769432041,0.60029671,118870.0,118860.0,0.61320921]
[1753769432241,0.3900375,118870.0,118860.0,0.61320921]
[1753769432542,0.39862399,118870.0,118860.0,0.61320921]
[1753769432841,0.89862399,118870.0,118860.0,0.82346842]
[1753769433538,0.91827481,118870.0,118860.0,0.99174012]
[1753769433729,0.01447325,118870.0,118860.0,2.25103296]
[1753769433936,0.2523996,118890.0,118880.0,0.5711934]
[1753769434242,0.3123996,118890.0,118880.0,1.87601103]
[1753769434447,0.32111247,118890.0,118880.0,1.66575182]
[1753769434746,0.3123996,118890.0,118880.0,1.66575182]
[1753769434934,0.2703393,118890.0,118880.0,1.87601103]
[1753769435131,0.27913758,118900.0,118890.0,0.2451092]
[1753769435430,0.27913758,118900.0,118890.0,1.20195683]
[1753769435431,0.18885618,118900.0,118890.0,1.20195683]
[1753769435636,0.11385618,118900.0,118890.0,1.62017283]
[1753769436641,0.61385618,118900.0,118890.0,1.62017283]
[1753769436848,0.61385618,118900.0,118890.0,1.26966525]
[1753769437039,0.78207128,118900.0,118890.0,1.26966525]
[1753769437230,0.78207128,118900.0,118890.0,1.01966525]
[1753769440238,0.8478351,118900.0,118890.0,1.01966525]
[1753769441445,0.8478351,118900.0,118890.0,1.02066525]
[1753769441945,0.8478351,118900.0,118890.0,0.85244925]
[1753769444245,0.67962,118900.0,118890.0,0.85244925]
[1753769449653,0.74233,118900.0,118890.0,0.85244925]
[1753769450652,0.81283,118900.0,118890.0,0.85244925]
[1753769451259,0.86215,118900.0,118890.0,0.85244925]
[1753769452056,0.89413,118900.0,118890.0,0.85244925]
[1753769454657,0.61385618,118900.0,118890.0,0.85244925]
[1753769455157,0.11385618,118900.0,118890.0,0.85244925]
[1753769462769,0.11385618,118900.0,118890.0,0.99258704]
[1753769469469,0.11385618,118900.0,118890.0,1.06801941]
[1753769470374,0.11385618,118900.0,118890.0,0.99258704]
[1753769471375,0.11385618,118900.0,118890.0,1.06801941]
[1753769471676,0.11385618,118900.0,118890.0,0.99258704]
[1753769478781,0.11385618,118900.0,118890.0,1.06801941]
[1753769483074,0.02217618,118900.0,118890.0,1.06801941]
[1753769483280,0.6015644,118930.0,118920.0,0.5778468]
[1753769483482,0.71705733,118930.0,118920.0,1.67173464]
[1753769483773,0.69774009,118930.0,118920.0,1.67173464]
[1753769484581,1.24755009,118930.0,118920.0,1.67173464]
[1753769485775,1.24855009,118930.0,118920.0,1.67173464]
[1753769486383,1.25155009,118930.0,118920.0,1.67173464]
[1753769486775,1.46175401,118930.0,118920.0,0.58859464]
[1753769487083,1.46175401,118930.0,118910.0,0.2522846]
[1753769487084,0.5174768,118920.0,118910.0,0.2522846]
[1753769487280,0.83768072,118920.0,118910.0,1.13592852]
[1753769487784,0.6274768,118920.0,118910.0,1.18230852]
[1753769487986,0.6274768,118920.0,118910.0,1.30802852]
[1753769488889,0.6274768,118920.0,118910.0,1.3781079]